fUSD/lending_fUSD_20250426
["ID","MTS","AMOUNT","RATE_DAILY","PERIOD"]
[359086340,1745700649547,-666.0,0.00019999,2]
[359086342,1745700649558,-300.0,0.00019999,2]
[359086344,1745700649568,-500.0,0.00019999,2]
[359086346,1745700649579,-300.0,0.00019999,2]
[359086348,1745700649589,-500.0,0.00019999,2]
[359086351,1745700649599,-300.0,0.00019999,2]
[359086353,1745700649609,-300.0,0.00019999,2]
[359086355,1745700649619,-400.0,0.00019999,2]
[359086357,1745700649630,-400.0,0.00019999,2]
[359086359,1745700649640,-400.0,0.00019999,2]
[359086361,1745700649650,-400.0,0.00019999,2]
[359086363,1745700649660,-429.35,0.00019999,2]
[359086365,1745700649671,-538.44,0.00019999,2]
[359086367,1745700649681,-538.44,0.00019999,2]
[359086369,1745700649692,-538.44,0.00019999,2]
[359086371,1745700649702,-538.44,0.00019999,2]
[359086374,1745700649712,-538.44,0.00019999,2]
[359086376,1745700649723,-538.44,0.00019999,2]
[359086378,1745700649733,-538.44,0.00019999,2]
[359086380,1745700649744,-538.44,0.00019999,2]
[359086382,1745700649754,-538.44,0.00019999,2]
[359086384,1745700649765,-538.44,0.00019999,2]
[359086386,1745700649775,-538.44,0.00019999,2]
[359086388,1745700649785,-538.44,0.00019999,2]
[359086390,1745700649795,-538.44,0.00019999,2]
[359086393,1745700649806,-538.44,0.00019999,2]
[359086395,1745700649817,-538.44,0.00019999,2]
[359086397,1745700649831,-538.44,0.00019999,2]
[359086399,1745700649842,-538.44,0.00019999,2]
[359086401,1745700649851,-538.44,0.00019999,2]
[359086403,1745700649862,-538.44,0.00019999,2]
[359086405,1745700649874,-538.44,0.00019999,2]
[359086407,1745700649885,-538.48117237,0.00019999,2]
[359086409,1745700649897,-828.02,0.00019999,2]
[359086411,1745700649909,-828.02,0.00019999,2]
[359086413,1745700649919,-828.02,0.00019999,2]
[359086415,1745700649929,-828.02,0.00019999,2]
[359086418,1745700649940,-828.02,0.00019999,2]
[359086420,1745700649950,-828.02,0.00019999,2]
[359086422,1745700649960,-828.02,0.00019999,2]
[359086424,1745700649970,-828.02,0.00019999,2]
[359086426,1745700649979,-828.02,0.00019999,2]
[359086428,1745700649990,-828.02,0.00019999,2]
[359086430,1745700650000,-828.02,0.00019999,2]
[359086432,1745700650010,-828.02,0.00019999,2]
[359086434,1745700650020,-828.02,0.00019999,2]
[359086436,1745700650030,-828.02,0.00019999,2]
[359086438,1745700650040,-828.02,0.00019999,2]
[359086440,1745700650050,-828.02,0.00019999,2]
[359086442,1745700650060,-828.02,0.00019999,2]
[359086444,1745700650071,-828.02,0.00019999,2]
[359086446,1745700650082,-828.02,0.00019999,2]
[359086448,1745700650092,-828.02,0.00019999,2]
[359086450,1745700650102,-828.02,0.00019999,2]
[359086452,1745700650112,-828.13602455,0.00019999,2]
[359086455,1745700650123,-500.0,0.00019999,2]
[359086457,1745700650134,-500.0,0.00019999,2]
[359086459,1745700650144,-500.0,0.00019999,2]
[359086461,1745700650155,-500.0,0.00019999,2]
[359086463,1745700650165,-500.0,0.00019999,2]
[359086465,1745700650175,-500.0,0.00019999,2]
[359086467,1745700650186,-500.0,0.00019999,2]
[359086469,1745700650197,-582.75906336,0.00019999,2]
[359086471,1745700650207,-757.74,0.00019999,2]
[359086473,1745700650217,-757.74,0.00019999,2]
[359086476,1745700650228,-757.74,0.00019999,2]
[359086478,1745700650239,-757.74,0.00019999,2]
[359086480,1745700650249,-757.74,0.00019999,2]
[359086482,1745700650259,-757.74,0.00019999,2]
[359086484,1745700650269,-757.74,0.00019999,2]
[359086486,1745700650280,-757.74,0.00019999,2]
[359086488,1745700650290,-757.74,0.00019999,2]
[359086490,1745700650300,-757.74,0.00019999,2]
[359086492,1745700650310,-757.74,0.00019999,2]
[359086494,1745700650320,-757.74,0.00019999,2]
[359086496,1745700650331,-757.74,0.00019999,2]
[359086498,1745700650341,-757.74,0.00019999,2]
[359086500,1745700650352,-757.74,0.00019999,2]
[359086502,1745700650363,-757.74,0.00019999,2]
[359086505,1745700650373,-757.74,0.00019999,2]
[359086507,1745700650383,-757.74,0.00019999,2]
[359086509,1745700650393,-757.74,0.00019999,2]
[359086511,1745700650403,-757.74,0.00019999,2]
[359086513,1745700650414,-757.95084152,0.00019999,2]
[359086515,1745700650423,-500.0,0.00019999,2]
[359086517,1745700650433,-500.0,0.00019999,2]
[359086519,1745700650443,-500.0,0.00019999,2]
[359086521,1745700650453,-500.0,0.00019999,2]
[359086523,1745700650463,-500.0,0.00019999,2]
[359086525,1745700650474,-500.0,0.00019999,2]
[359086527,1745700650484,-500.0,0.00019999,2]
[359086529,1745700650493,-500.0,0.00019999,2]
[359086531,1745700650503,-500.0,0.00019999,2]
[359086533,1745700650513,-500.0,0.00019999,2]
[359086535,1745700650524,-500.0,0.00019999,2]
[359086537,1745700650533,-500.0,0.00019999,2]
[359086539,1745700650543,-500.0,0.00019999,2]
[359086541,1745700650553,-500.0,0.00019999,2]
[359086543,1745700650563,-500.0,0.00019999,2]
[359086545,1745700650573,-500.0,0.00019999,2]
[359086547,1745700650582,-500.0,0.00019999,2]
[359086549,1745700650592,-500.0,0.00019999,2]
[359086551,1745700650602,-500.0,0.00019999,2]
[359086553,1745700650611,-299.06638074,0.00019999,2]
[359086555,1745700650621,-215.28252671,0.00019999,2]
[359086557,1745700650631,-590.0,0.00019999,2]
[359086560,1745700650641,-259392.02941816,0.0002,2]
[359086601,1745700651136,-508.37,0.00019798,2]
[359086602,1745700651147,-120.86687052,0.00019798,2]
[359086717,1745700652300,-379.13312948,0.00019798,2]
[359086719,1745700652309,-156.13437515,0.00019798,2]
[359086723,1745700652334,-343.86562485,0.00019798,2]
[359086725,1745700652343,-1649.0023253,0.00019799,2]
[359087769,1745700663484,-0.00692073,0.00019798,2]
[359087800,1745700664103,-399.99307927,0.00019798,2]
[359087802,1745700664114,-718.80692073,0.00019798,2]
[359088944,1745700689937,899.14242308,0.00036986,60]
[359088945,1745700694430,385.376407,0.00019489,2]
[359088946,1745700772534,226.01534003,0.0002,23]
[359088947,1745700794565,500.0,0.00033892,120]
[359088948,1745700800157,500.0,0.00033892,120]
[359088949,1745700860806,299.99,0.00019865,7]
[359088950,1745700866945,157.4,0.00019865,5]
[359088951,1745700877923,1000.0,0.00019058,2]
[359088952,1745701228732,558.32,0.00016947,2]
[359088953,1745701229001,558.32,0.00019211,2]
[359088955,1745701392585,483.930534,0.00033892,120]
[359088956,1745701393659,299.99,0.00019773,7]
[359088957,1745701397990,520.133043,0.00033892,120]
[359088958,1745701448952,250.0,0.00018857,2]
[359088959,1745701456872,150.0,0.00018857,7]
[359088960,1745701567824,153.63,0.00018824,2]
[359088963,1745701662627,161.32,0.00018818,2]
[359088965,1745701691704,355.71977336,0.00036986,60]
[359088969,1745701802468,204.45924197,0.0002,4]
[359088971,1745701832357,-221.23682882,0.00019584,2]
[359088972,1745701832372,-250.0,0.00019589,2]
[359088973,1745701832384,-200.0,0.00019589,2]
[359088974,1745701832394,-898.12108993,0.00019596,2]
[359088975,1745701832405,-250.0,0.00019612,2]
[359088976,1745701832416,-200.0,0.00019612,2]
[359088977,1745701832427,-221.23682881,0.00019673,2]
[359088978,1745701832438,-8.93329435,0.00019684,2]
[359088979,1745701832450,-145.77670565,0.00019684,2]
[359088980,1745701832460,-1200.0,0.00019696,2]
[359088981,1745701832470,-300.0,0.00019696,2]
[359088982,1745701832481,-254.22328435,0.00019696,2]
[359088983,1745701832600,-45.77671565,0.00019696,2]
[359088984,1745701832610,-210.50115448,0.00019697,2]
[359088985,1745701832620,-417.54479042,0.00019697,2]
[359088986,1745701832640,-152.90461001,0.00019697,2]
[359088987,1745701832650,-163.62859451,0.00019697,2]
[359088988,1745701832659,-284.35272312,0.00019698,2]
[359088992,1745701838264,-498.47037688,0.00019698,2]
[359088993,1745701838275,-210.50115444,0.0001972,2]
[359088994,1745701838285,-210.50115444,0.00019742,2]
[359088995,1745701838294,-210.50115444,0.00019765,2]
[359088996,1745701838306,-500.0,0.00019772,2]
[359088997,1745701838317,-224.7061079,0.00019772,2]
[359088998,1745701838327,-500.0,0.00019772,2]
[359088999,1745701838337,-500.0,0.00019772,2]
[359089000,1745701838347,-500.0,0.00019772,2]
[359089001,1745701838358,-500.0,0.00019772,2]
[359089002,1745701838372,-333.04320394,0.00019772,2]
[359089003,1745701838383,-318.67322398,0.00019772,2]
[359089004,1745701838401,-31.32677602,0.00019772,2]
[359089005,1745701838411,-500.0,0.00019772,2]
[359089006,1745701838420,-402.27723103,0.00019772,2]
[359089007,1745701838433,-97.72276897,0.00019772,2]
[359089008,1745701838445,-500.0,0.00019772,2]
[359089009,1745701838455,-500.0,0.00019772,2]
[359089010,1745701838465,-500.0,0.00019772,2]
[359089011,1745701838478,-500.0,0.00019772,2]
[359089012,1745701838493,-500.0,0.00019772,2]
[359089013,1745701838503,-9999.99,0.00019773,2]
[359089014,1745701838512,-7140.71,0.00019773,2]
[359089015,1745701838522,-3202.76,0.00019773,2]
[359089016,1745701838532,-150.99,0.00019773,2]
[359089017,1745701838542,-421.27,0.00019773,2]
[359089018,1745701838551,-999.99,0.00019773,2]
[359089019,1745701838561,-6947.74,0.00019773,2]
[359089020,1745701838571,-6441.18,0.00019773,2]
[359089021,1745701838581,-9999.99,0.00019773,2]
[359089022,1745701838590,-255.87,0.00019773,2]
[359089023,1745701838599,-500.0,0.00019773,2]
[359089025,1745701838609,-502.0147822,0.00019773,2]
[359089026,1745701838618,-403.269515,0.00019773,2]
[359089028,1745701838630,-207.4,0.00019786,2]
[359089030,1745701838640,-151.0,0.00019786,2]
[359089032,1745701838649,-277.62,0.00019787,2]
[359089034,1745701838658,-277.62,0.00019787,2]
[359089036,1745701838668,-210.50115444,0.00019787,2]
[359089037,1745701838678,-500.0,0.00019796,2]
[359089040,1745701838688,-500.0,0.00019796,2]
[359089041,1745701838698,-500.0,0.00019796,2]
[359089043,1745701838708,-500.0,0.00019796,2]
[359089045,1745701838718,-217.68962418,0.00019796,2]
[359089047,1745701838727,-404.78,0.00019796,2]
[359089049,1745701838736,-400.0,0.00019796,2]
[359089051,1745701838747,-580.5,0.00019796,2]
[359089053,1745701838757,-400.0,0.00019796,2]
[359089055,1745701838766,-400.0,0.00019796,2]
[359089057,1745701838776,-400.0,0.00019796,2]
[359089059,1745701838785,-440.45,0.00019796,2]
[359089061,1745701838795,-402.64,0.00019796,2]
[359089063,1745701838804,-400.0,0.00019796,2]
[359089065,1745701838814,-538.1,0.00019796,2]
[359089067,1745701838823,-586.84,0.00019796,2]
[359089069,1745701838833,-400.0,0.00019796,2]
[359089071,1745701838843,-525.07,0.00019796,2]
[359089073,1745701838853,-400.0,0.00019796,2]
[359089075,1745701838862,-784.29,0.00019796,2]
[359089077,1745701838871,-578.72,0.00019796,2]
[359089079,1745701838881,-411.24,0.00019796,2]
[359089081,1745701838892,-400.0,0.00019796,2]
[359089083,1745701838902,-400.0,0.00019796,2]
[359089085,1745701838911,-5935.21,0.00019796,2]
[359089087,1745701838921,-400.0,0.00019796,2]
[359089089,1745701838930,-400.0,0.00019796,2]
[359089091,1745701838939,-669.69,0.00019796,2]
[359089093,1745701838948,-400.0,0.00019796,2]
[359089095,1745701838958,-400.0,0.00019796,2]
[359089097,1745701838967,-400.0,0.00019796,2]
[359089099,1745701838979,-400.0,0.00019796,2]
[359089101,1745701838988,-400.0,0.00019796,2]
[359089103,1745701838999,-487.19,0.00019796,2]
[359089105,1745701839009,-400.0,0.00019796,2]
[359089107,1745701839018,-400.0,0.00019796,2]
[359089109,1745701839029,-135743.72148706,0.00019797,2]
[359089111,1745701839038,-536.94466659,0.00019797,2]
[359089113,1745701839047,-8260.114003,0.00019797,2]
[359089115,1745701839059,-272.460639,0.00019797,2]
[359089116,1745701839068,-265.659978,0.00019797,2]
[359089118,1745701839078,-166.423983,0.00019797,2]
[359089120,1745701839087,-500.0,0.00019797,2]
[359089122,1745701839097,-400.0,0.00019797,2]
[359089124,1745701839107,-500.0,0.00019797,2]
[359089126,1745701839116,-400.0,0.00019797,2]
[359089128,1745701839126,-500.0,0.00019797,2]
[359089130,1745701839135,-500.0,0.00019797,2]
[359089132,1745701839145,-400.0,0.00019797,2]
[359089134,1745701839154,-400.0,0.00019797,2]
[359089136,1745701839164,-400.0,0.00019797,2]
[359089138,1745701839173,-734.0,0.00019797,2]
[359089140,1745701839183,-500.83206328,0.00019797,2]
[359089142,1745701839192,-500.0,0.00019797,2]
[359089144,1745701839201,-215.039,0.00019797,2]
[359089146,1745701839211,-237.5090472,0.00019797,2]
[359089148,1745701839220,-400.0,0.00019797,2]
[359089150,1745701839230,-400.0,0.00019797,2]
[359089152,1745701839240,-400.0,0.00019797,2]
[359089154,1745701839249,-500.0,0.00019797,2]
[359089156,1745701839259,-672.7,0.00019797,2]
[359089158,1745701839269,-400.0,0.00019797,2]
[359089160,1745701839278,-513.88037635,0.00019797,2]
[359089162,1745701839288,-400.0,0.00019797,2]
[359089164,1745701839297,-512.96,0.00019797,2]
[359089166,1745701839307,-517.77229489,0.00019797,2]
[359089167,1745701839316,-400.0,0.00019797,2]
[359089170,1745701839326,-535.66,0.00019797,2]
[359089172,1745701839336,-536.65850559,0.00019797,2]
[359089174,1745701839345,-400.0,0.00019797,2]
[359089176,1745701839357,-529.40516209,0.00019797,2]
[359089178,1745701839371,-400.0,0.00019797,2]
[359089180,1745701839381,-400.0,0.00019797,2]
[359089182,1745701839391,-405.26708458,0.00019797,2]
[359089184,1745701839401,-400.0,0.00019797,2]
[359089185,1745701839410,-400.0,0.00019797,2]
[359089187,1745701839420,-265.07858345,0.00019797,2]
[359089190,1745701839431,-502.20725441,0.00019797,2]
[359089192,1745701839441,-400.0,0.00019797,2]
[359089194,1745701839451,-500.0,0.00019797,2]
[359089195,1745701839461,-400.0,0.00019797,2]
[359089197,1745701839471,-544.12091407,0.00019797,2]
[359089199,1745701839480,-400.0,0.00019797,2]
[359089201,1745701839490,-501.17231651,0.00019797,2]
[359089203,1745701839500,-400.0,0.00019797,2]
[359089205,1745701839509,-400.0,0.00019797,2]
[359089207,1745701839519,-500.0,0.00019797,2]
[359089209,1745701839531,-400.0,0.00019797,2]
[359089211,1745701839541,-400.0,0.00019797,2]
[359089213,1745701839551,-400.0,0.00019797,2]
[359089215,1745701839561,-400.0,0.00019797,2]
[359089217,1745701839571,-1126.71,0.00019797,2]
[359089219,1745701839581,-569.15,0.00019797,2]
[359089221,1745701839591,-500.0,0.00019797,2]
[359089223,1745701839601,-250.0,0.00019797,2]
[359089225,1745701839611,-423.57,0.00019797,2]
[359089227,1745701839621,-400.0,0.00019797,2]
[359089229,1745701839631,-400.0,0.00019797,2]
[359089231,1745701839641,-400.0,0.00019797,2]
[359089233,1745701839651,-500.0,0.00019797,2]
[359089235,1745701839660,-400.0,0.00019797,2]
[359089237,1745701839670,-470.08,0.00019797,2]
[359089239,1745701839680,-497.35,0.00019797,2]
[359089241,1745701839689,-500.0,0.00019797,2]
[359089243,1745701839699,-400.0,0.00019797,2]
[359089245,1745701839710,-510.71,0.00019797,2]
[359089247,1745701839720,-509.01,0.00019797,2]
[359089249,1745701839730,-400.0,0.00019797,2]
[359089251,1745701839741,-400.0,0.00019797,2]
[359089253,1745701839750,-439.58,0.00019797,2]
[359089255,1745701839760,-400.0,0.00019797,2]
[359089257,1745701839770,-400.0,0.00019797,2]
[359089259,1745701839780,-503.48671736,0.00019797,2]
[359089261,1745701839789,-458.05,0.00019797,2]
[359089263,1745701839799,-500.0,0.00019797,2]
[359089265,1745701839808,-522.08,0.00019797,2]
[359089267,1745701839818,-500.0,0.00019797,2]
[359089269,1745701839828,-400.0,0.00019797,2]
[359089271,1745701839837,-400.0,0.00019797,2]
[359089273,1745701839847,-500.0,0.00019797,2]
[359089275,1745701839857,-400.0,0.00019797,2]
[359089277,1745701839867,-554.98,0.00019797,2]
[359089279,1745701839877,-614.62,0.00019797,2]
[359089281,1745701839887,-400.0,0.00019797,2]
[359089283,1745701839896,-430.0,0.00019797,2]
[359089285,1745701839906,-400.0,0.00019797,2]
[359089287,1745701839916,-857.7,0.00019797,2]
[359089289,1745701839925,-400.0,0.00019797,2]
[359089291,1745701839934,-546.01,0.00019797,2]
[359089292,1745701839944,-308.83261399,0.00019797,2]
[359089294,1745701839953,-500.0,0.00019797,2]
[359089297,1745701839964,-468.58,0.00019797,2]
[359089299,1745701839974,-400.0,0.00019797,2]
[359089301,1745701839984,-400.0,0.00019797,2]
[359089303,1745701839995,-472.32,0.00019797,2]
[359089305,1745701840004,-500.0,0.00019797,2]
[359089307,1745701840016,-400.0,0.00019797,2]
[359089309,1745701840026,-400.0,0.00019797,2]
[359089311,1745701840037,-400.0,0.00019797,2]
[359089313,1745701840047,-532.03936521,0.00019797,2]
[359089315,1745701840056,-980.37,0.00019797,2]
[359089317,1745701840066,-400.0,0.00019797,2]
[359089319,1745701840075,-400.0,0.00019797,2]
[359089321,1745701840085,-500.0,0.00019797,2]
[359089323,1745701840095,-400.23,0.00019797,2]
[359089325,1745701840105,-400.0,0.00019797,2]
[359089327,1745701840115,-424.66,0.00019797,2]
[359089329,1745701840125,-400.0,0.00019797,2]
[359089331,1745701840135,-400.0,0.00019797,2]
[359089333,1745701840146,-500.0,0.00019797,2]
[359089335,1745701840156,-400.0,0.00019797,2]
[359089337,1745701840165,-427.54017688,0.00019797,2]
[359089339,1745701840176,-503.66766536,0.00019797,2]
[359089341,1745701840188,-400.0,0.00019797,2]
[359089343,1745701840198,-400.0,0.00019797,2]
[359089345,1745701840210,-400.0,0.00019797,2]
[359089347,1745701840219,-400.0,0.00019797,2]
[359089348,1745701840229,-400.0,0.00019797,2]
[359089349,1745701840239,-400.0,0.00019797,2]
[359089350,1745701840250,-218.13582907,0.00019797,2]
[359089351,1745701840260,-400.0,0.00019797,2]
[359089352,1745701840270,-400.0,0.00019797,2]
[359089353,1745701840279,-400.0,0.00019797,2]
[359089354,1745701840288,-400.0,0.00019797,2]
[359089355,1745701840298,-400.0,0.00019797,2]
[359089356,1745701840308,-400.0,0.00019797,2]
[359089357,1745701840318,-400.0,0.00019797,2]
[359089359,1745701840328,-400.0,0.00019797,2]
[359089361,1745701840337,-400.0,0.00019797,2]
[359089363,1745701840347,-400.0,0.00019797,2]
[359089365,1745701840357,-720.53,0.00019797,2]
[359089366,1745701840370,-681.0,0.00019797,2]
[359089368,1745701840380,-732.03,0.00019797,2]
[359089370,1745701840389,-400.0,0.00019797,2]
[359089372,1745701840399,-400.0,0.00019797,2]
[359089373,1745701840410,-400.0,0.00019797,2]
[359089374,1745701840419,-401.86,0.00019797,2]
[359089375,1745701840429,-400.0,0.00019797,2]
[359089376,1745701840440,-500.0,0.00019797,2]
[359089377,1745701840450,-400.0,0.00019797,2]
[359089378,1745701840460,-400.0,0.00019797,2]
[359089379,1745701840470,-400.0,0.00019797,2]
[359089381,1745701840479,-400.0,0.00019797,2]
[359089406,1745701840718,-400.0,0.00019797,2]
[359089408,1745701840728,-400.0,0.00019797,2]
[359089410,1745701840738,-400.0,0.00019797,2]
[359089411,1745701840748,-400.0,0.00019797,2]
[359089413,1745701840758,-273.92571822,0.00019797,2]
[359089415,1745701840768,-530.66335049,0.00019797,2]
[359089417,1745701840778,-851.16,0.00019797,2]
[359089419,1745701840787,-539.78,0.00019797,2]
[359089421,1745701840797,-680.1,0.00019797,2]
[359089423,1745701840806,-400.0,0.00019797,2]
[359089425,1745701840816,-400.0,0.00019797,2]
[359089427,1745701840825,-452.24,0.00019797,2]
[359089429,1745701840835,-400.0,0.00019797,2]
[359089431,1745701840845,-520.82,0.00019797,2]
[359089433,1745701840855,-400.0,0.00019797,2]
[359089435,1745701840864,-473.62,0.00019797,2]
[359089437,1745701840874,-400.0,0.00019797,2]
[359089439,1745701840883,-400.0,0.00019797,2]
[359089441,1745701840892,-400.0,0.00019797,2]
[359089443,1745701840902,-443.24,0.00019797,2]
[359089445,1745701840911,-520.3,0.00019797,2]
[359089447,1745701840922,-400.0,0.00019797,2]
[359089449,1745701840931,-400.0,0.00019797,2]
[359089451,1745701840941,-400.0,0.00019797,2]
[359089453,1745701840951,-578.98,0.00019797,2]
[359089455,1745701840961,-565.75,0.00019797,2]
[359089457,1745701840971,-849.54,0.00019797,2]
[359089459,1745701840980,-500.0,0.00019797,2]
[359089461,1745701840990,-400.0,0.00019797,2]
[359089464,1745701841010,-400.0,0.00019797,2]
[359089466,1745701841022,-400.0,0.00019797,2]
[359089469,1745701841032,-400.0,0.00019797,2]
[359089470,1745701841044,-429.35,0.00019797,2]
[359089473,1745701841055,-400.0,0.00019797,2]
[359089475,1745701841067,-500.0,0.00019797,2]
[359089477,1745701841077,-400.0,0.00019797,2]
[359089479,1745701841088,-503.35852567,0.00019797,2]
[359089481,1745701841099,-400.0,0.00019797,2]
[359089483,1745701841110,-400.0,0.00019797,2]
[359089485,1745701841121,-616.99,0.00019797,2]
[359089487,1745701841131,-608.92,0.00019797,2]
[359089489,1745701841141,-400.0,0.00019797,2]
[359089491,1745701841152,-400.0,0.00019797,2]
[359089494,1745701841163,-509.84,0.00019797,2]
[359089496,1745701841173,-400.0,0.00019797,2]
[359089498,1745701841184,-400.0,0.00019797,2]
[359089500,1745701841194,-400.0,0.00019797,2]
[359089502,1745701841204,-400.0,0.00019797,2]
[359089504,1745701841214,-520.07,0.00019797,2]
[359089506,1745701841224,-400.0,0.00019797,2]
[359089508,1745701841234,-412.95,0.00019797,2]
[359089510,1745701841245,-510.36,0.00019797,2]
[359089512,1745701841255,-400.0,0.00019797,2]
[359089514,1745701841266,-400.0,0.00019797,2]
[359089516,1745701841276,-400.0,0.00019797,2]
[359089518,1745701841287,-400.0,0.00019797,2]
[359089520,1745701841296,-400.0,0.00019797,2]
[359089522,1745701841306,-620.36,0.00019797,2]
[359089524,1745701841317,-463.0,0.00019797,2]
[359089526,1745701841327,-407.22,0.00019797,2]
[359089528,1745701841337,-400.0,0.00019797,2]
[359089530,1745701841346,-400.0,0.00019797,2]
[359089532,1745701841357,-400.0,0.00019797,2]
[359089535,1745701841371,-500.0,0.00019797,2]
[359089537,1745701841380,-444.79,0.00019797,2]
[359089539,1745701841390,-400.0,0.00019797,2]
[359089541,1745701841400,-400.0,0.00019797,2]
[359089543,1745701841409,-400.0,0.00019797,2]
[359089545,1745701841419,-400.0,0.00019797,2]
[359089547,1745701841429,-512.64,0.00019797,2]
[359089549,1745701841444,-400.0,0.00019797,2]
[359089551,1745701841454,-400.0,0.00019797,2]
[359089553,1745701841465,-2011.41,0.00019797,2]
[359089556,1745701841475,-794.16,0.00019797,2]
[359089558,1745701841485,-707.26,0.00019797,2]
[359089560,1745701841496,-494.69,0.00019797,2]
[359089562,1745701841505,-400.0,0.00019797,2]
[359089564,1745701841515,-400.0,0.00019797,2]
[359089566,1745701841525,-875.79,0.00019797,2]
[359089568,1745701841536,-562.78,0.00019797,2]
[359089570,1745701841546,-400.0,0.00019797,2]
[359089572,1745701841556,-400.0,0.00019797,2]
[359089574,1745701841565,-400.0,0.00019797,2]
[359089576,1745701841576,-400.0,0.00019797,2]
[359089578,1745701841585,-400.0,0.00019797,2]
[359089580,1745701841595,-821.41,0.00019797,2]
[359089583,1745701841606,-473.35,0.00019797,2]
[359089585,1745701841616,-433.53,0.00019797,2]
[359089587,1745701841626,-220.81434598,0.00019797,2]
[359089589,1745701841636,-400.0,0.00019797,2]
[359089591,1745701841646,-400.0,0.00019797,2]
[359089593,1745701841657,-400.0,0.00019797,2]
[359089595,1745701841667,-400.0,0.00019797,2]
[359089597,1745701841677,-400.0,0.00019797,2]
[359089599,1745701841687,-400.0,0.00019797,2]
[359089601,1745701841697,-2321.02,0.00019797,2]
[359089603,1745701841708,-400.0,0.00019797,2]
[359089605,1745701841718,-400.0,0.00019797,2]
[359089607,1745701841729,-400.0,0.00019797,2]
[359089609,1745701841739,-515.80456148,0.00019797,2]
[359089611,1745701841749,-512.02,0.00019797,2]
[359089613,1745701841759,-584.36,0.00019797,2]
[359089616,1745701841769,-400.0,0.00019797,2]
[359089618,1745701841779,-400.0,0.00019797,2]
[359089620,1745701841790,-400.0,0.00019797,2]
[359089622,1745701841801,-667.69,0.00019797,2]
[359089624,1745701841811,-438.67,0.00019797,2]
[359089626,1745701841821,-598.09,0.00019797,2]
[359089628,1745701841831,-400.0,0.00019797,2]
[359089630,1745701841841,-482.69,0.00019797,2]
[359089632,1745701841852,-2213.57,0.00019797,2]
[359089634,1745701841862,-400.0,0.00019797,2]
[359089636,1745701841872,-425.41,0.00019797,2]
[359089639,1745701841887,-400.0,0.00019797,2]
[359089641,1745701841898,-500.0,0.00019797,2]
[359089643,1745701841909,-400.0,0.00019797,2]
[359089645,1745701841919,-400.0,0.00019797,2]
[359089647,1745701841930,-437.34,0.00019797,2]
[359089649,1745701841940,-520.36,0.00019797,2]
[359089651,1745701841950,-410.18,0.00019797,2]
[359089653,1745701841960,-400.0,0.00019797,2]
[359089656,1745701841970,-540.5473059,0.00019797,2]
[359089658,1745701841981,-527.8,0.00019797,2]
[359089660,1745701841991,-782.38,0.00019797,2]
[359089662,1745701842001,-400.0,0.00019797,2]